Workbook

Sheet Data
A1: Age (d) | B1: Weight (g) | E1: data: | F1: Rhodesian Ridgeback
A2: 0 | B2: 410 | E2: source: | F2: Elke Schläger
A3: 2 | B3: 435 | E3: no of data: | F3: =COUNT(A:A) -> 23
A4: 3 | B4: 736 | E4: max weight | F4: =MAX(B:B) -> 31800
A5: 8 | B5: 736 | E5: min weight | F5: =MIN(B:B) -> 410
A6: 15 | B6: 1126
A7: 61 | B7: 5900
A8: 68 | B8: 6900
A9: 75 | B9: 7900
A10: 83 | B10: 9400
A11: 89 | B11: 10700
A12: 96 | B12: 11700
A13: 103 | B13: 13200
A14: 117 | B14: 15000
A15: 124 | B15: 16600
A16: 141 | B16: 18500
A17: 169 | B17: 21500
A18: 178 | B18: 22400
A19: 192 | B19: 24500
A20: 215 | B20: 25500
A21: 288 | B21: 30000
A22: 389 | B22: 31000
A23: 420 | B23: 31500
A24: 451 | B24: 31800

Sheet SigmoidTest
A1: =Data!A1 -> Age (d) | B1: =Data!B1 -> Weight (g) | C1: dm/dt | D1: dm/dt num | E1: m^a | F1: m^b | G1: dm/dt model | H1: m | I1: dm/dt num | J1: model | K1: Min | L1: =MIN(D3:D200) -> 12.90 | N1: a | O1: b | P1: p | Q1: q | R1: m_0 | S1: m_max | T1: SS | U1: mobs | V1: Comment:
A2: =Data!A2 -> 0 | B2: =Data!B2 -> 410 | K2: max | L2: =MAX(D3:D200) -> 250.83 | M2: Start value | N2: 0.99 | O2: 1 | P2: =INDEX(LINEST(INDIRECT("D3:D"&O4),INDIRECT("E3:F"&O4),FALSE,TRUE),1,2) -> 1.792578976 | Q2: =IF(Q4>0,Q4,Q5) -> 1.616348392 | R2: =B2 -> 410 | S2: =MAX(S4:S5) -> 31,800.00 | T2: =INDEX(LINEST(INDIRECT("D3:D"&O4),INDIRECT("E3:F"&O4),FALSE,TRUE),5,2) -> 81088.78781 | U2: =Data!F4 -> 31800 | V2: adapt RGP-Formula in P2, Q2, T2
A3: =Data!A3 -> 2 | B3: =Data!B3 -> 435 | C3: =IF(A3="","",(B3-B2)/(A3-A2)) -> 12.5 | D3: =IF(A4="","",C3*(A3-A4)/(A2-A4)+C4*(A2-A3)/(A2-A4)) -> 204.8333333 | E3: =IF(A4="","",B3^$N$2) -> 409.3590201 | F3: =IF(A4="","",B3^$O$2) -> 435 | G3: =IF(D3="","",E3*$P$2-F3*$Q$4) -> 30.69682248 | H3: =B3 -> 435 | I3: =D3 -> 204.8333333 | J3: =G3 -> 30.69682248 | K3: SS | L3: =T2 -> 81,088.79 | Q3: initial values for Solver
A4: =Data!A4 -> 3 | B4: =Data!B4 -> 736 | C4: =IF(A4="","",(B4-B3)/(A4-A3)) -> 301 | D4: =IF(A5="","",C4*(A4-A5)/(A3-A5)+C5*(A3-A4)/(A3-A5)) -> 250.8333333 | E4: =IF(A5="","",B4^$N$2) -> 688.9838407 | F4: =IF(A5="","",B4^$O$2) -> 736 | G4: 45.42553108 | H4: =B4 -> 736 | I4: =D4 -> 250.8333333 | J4: =G4 -> 45.42553108 | O4: 23 | P4: linear mod | Q4: =-INDEX(LINEST(INDIRECT("D3:D"&O4),INDIRECT("E3:F"&O4),FALSE,TRUE),1,1) -> 1.616348392 | R4: m_max Formel | S4: =(P2/Q2)^(1/(1-N2)) -> 31212.76914
A5: =Data!A5 -> 8 | B5: =Data!B5 -> 736 | C5: 0 | D5: 23.21428571 | E5: 688.9838407 | F5: 736 | G5: 45.42553108 | H5: 736 | I5: 23.21428571 | J5: 45.42553108 | P5: from max | Q5: =P2/U2^(1-N2) -> 1.616047149 | R5: min m_max | S5: =U2 -> 31800
A6: =Data!A6 -> 15 | B6: =Data!B6 -> 1126 | C6: 55.71428571 | D6: 62.06293215 | E6: 1049.598029 | F6: 1126 | G6: 61.47907097 | H6: 1126 | I6: 62.06293215 | J6: 61.47907097
A7: =Data!A7 -> 61 | B7: =Data!B7 -> 5900 | C7: 103.7826087 | D7: 137.6963553 | E7: 5409.330185 | F7: 5900 | G7: 160.1960496 | H7: 5900 | I7: 137.6963553 | J7: 160.1960496
A8: =Data!A8 -> 68 | B8: =Data!B8 -> 6900 | C8: 142.8571429 | D8: 142.8571429 | E8: 6316.268741 | F8: 6900 | G8: 169.6066455 | H8: 6900 | I8: 142.8571429 | J8: 169.6066455
A9: =Data!A9 -> 75 | B9: =Data!B9 -> 7900 | C9: 142.8571429 | D9: 163.6904762 | E9: 7221.889188 | F9: 7900 | G9: 176.6544275 | H9: 7900 | I9: 163.6904762 | J9: 176.6544275
A10: =Data!A10 -> 83 | B10: =Data!B10 -> 9400 | C10: 187.5 | D10: 204.1666667 | E10: 8578.208049 | F10: 9400 | G10: 183.440514 | H10: 9400 | I10: 204.1666667 | J10: 183.440514
A11: =Data!A11 -> 89 | B11: =Data!B11 -> 10700 | C11: 216.6666667 | D11: 182.6007326 | E11: 9751.915734 | F11: 10700 | G11: 186.1513244 | H11: 10700 | I11: 182.6007326 | J11: 186.1513244
A12: =Data!A12 -> 96 | B12: =Data!B12 -> 11700 | C12: 142.8571429 | D12: 178.5714286 | E12: 10653.78684 | F12: 11700 | G12: 186.478112 | H12: 11700 | I12: 178.5714286 | J12: 186.478112
A13: =Data!A13 -> 103 | B13: =Data!B13 -> 13200 | C13: 214.2857143 | D13: 185.7142857 | E13: 12005.16662 | F13: 13200 | G13: 184.4105034 | H13: 13200 | I13: 185.7142857 | J13: 184.4105034
A14: =Data!A14 -> 117 | B14: =Data!B14 -> 15000 | C14: 128.5714286 | D14: 195.2380952 | E14: 13624.8066 | F14: 15000 | G14: 178.315989 | H14: 15000 | I14: 195.2380952 | J14: 178.315989
A15: =Data!A15 -> 124 | B15: =Data!B15 -> 16600 | C15: 228.5714286 | D15: 194.5028011 | E15: 15062.845 | F15: 16600 | G15: 169.9559573 | H15: 16600 | I15: 194.5028011 | J15: 169.9559573
A16: =Data!A16 -> 141 | B16: =Data!B16 -> 18500 | C16: 111.7647059 | D16: 110.0186741 | E16: 16768.72379 | F16: 18500 | G16: 156.8164592 | H16: 18500 | I16: 110.0186741 | J16: 156.8164592
A17: =Data!A17 -> 169 | B17: =Data!B17 -> 21500 | C17: 107.1428571 | D17: 101.7374517 | E17: 19458.71133 | F17: 21500 | G17: 129.7863951 | H17: 21500 | I17: 101.7374517 | J17: 129.7863951
A18: =Data!A18 -> 178 | B18: =Data!B18 -> 22400 | C18: 100 | D18: 119.5652174 | E18: 20264.95008 | F18: 22400 | G18: 120.3194698 | H18: 22400 | I18: 119.5652174 | J18: 120.3194698
A19: =Data!A19 -> 192 | B19: =Data!B19 -> 24500 | C19: 150 | D19: 109.6944771 | E19: 22144.9357 | F19: 24500 | G19: 96.01054453 | H19: 24500 | I19: 109.6944771 | J19: 96.01054453
A20: =Data!A20 -> 215 | B20: =Data!B20 -> 25500 | C20: 43.47826087 | D20: 47.83042982 | E20: 23039.59171 | F20: 25500 | G20: 83.40371862 | H20: 25500 | I20: 47.83042982 | J20: 83.40371862
A21: =Data!A21 -> 288 | B21: =Data!B21 -> 30000 | C21: 61.64383562 | D21: 39.93563031 | E21: 27061.38638 | F21: 30000 | G21: 19.22052424 | H21: 30000 | I21: 39.93563031 | J21: 19.22052424
A22: =Data!A22 -> 389 | B22: =Data!B22 -> 31000 | C22: 9.900990099 | D22: 14.66638599 | E22: 27954.26494 | F22: 31000 | G22: 3.427459379 | H22: 31000 | I22: 14.66638599 | J22: 3.427459379
A23: =Data!A23 -> 420 | B23: =Data!B23 -> 31500 | C23: 16.12903226 | D23: 12.90322581 | E23: 28400.59562 | F23: 31500 | G23: -4.663734212 | H23: 31500 | I23: 12.90322581 | J23: -4.663734212
A24: =Data!A24 -> 451 | B24: =Data!B24 -> 31800 | C24: 9.677419355 | H24: 31800
A57: =IF(Data!A57>A56,Data!A57,"") ->  | B57: =IF(A57="","",Data!B57) ->  | G57: =IF(D57="","",E57*$P$2-F57*$Q$4) -> 
A58: =IF(Data!A58>A57,Data!A58,"") ->  | B58: =IF(A58="","",Data!B58) -> 
A59: =IF(Data!A59>A58,Data!A59,"") ->  | B59: =IF(A59="","",Data!B59) -> 
A60: =IF(Data!A60>A59,Data!A60,"") ->  | B60: =IF(A60="","",Data!B60) -> 
A61: =IF(Data!A61>A60,Data!A61,"") ->  | B61: =IF(A61="","",Data!B61) -> 
A62: =IF(Data!A62>A61,Data!A62,"") ->  | B62: =IF(A62="","",Data!B62) -> 
A63: =IF(Data!A63>A62,Data!A63,"") ->  | B63: =IF(A63="","",Data!B63) -> 
A64: =IF(Data!A64>A63,Data!A64,"") ->  | B64: =IF(A64="","",Data!B64) -> 
A65: =IF(Data!A65>A64,Data!A65,"") ->  | B65: =IF(A65="","",Data!B65) -> 
A66: =IF(Data!A66>A65,Data!A66,"") ->  | B66: =IF(A66="","",Data!B66) -> 
A67: =IF(Data!A67>A66,Data!A67,"") ->  | B67: =IF(A67="","",Data!B67) ->  | G67: =IF(D67="","",E67*$P$2-F67*$Q$4) -> 
A68: =IF(Data!A68>A67,Data!A68,"") ->  | B68: =IF(A68="","",Data!B68) ->  | C68: =IF(A68="","",(B68-B67)/(A68-A67)) ->  | D68: =IF(A69="","",C68*(A68-A69)/(A67-A69)+C69*(A67-A68)/(A67-A69)) ->  | E68: =IF(A69="","",B68^$N$2) ->  | F68: =IF(A69="","",B68^$O$2) ->  | H68: =B68 ->  | I68: =D68 ->  | J68: =G68 -> 
A69: =IF(Data!A69>A68,Data!A69,"") ->  | B69: =IF(A69="","",Data!B69) -> 
A70: =IF(Data!A70>A69,Data!A70,"") ->  | B70: =IF(A70="","",Data!B70) -> 
A71: =IF(Data!A71>A70,Data!A71,"") ->  | B71: =IF(A71="","",Data!B71) -> 
A72: =IF(Data!A72>A71,Data!A72,"") ->  | B72: =IF(A72="","",Data!B72) -> 
A73: =IF(Data!A73>A72,Data!A73,"") ->  | B73: =IF(A73="","",Data!B73) -> 
A74: =IF(Data!A74>A73,Data!A74,"") ->  | B74: =IF(A74="","",Data!B74) -> 
A75: =IF(Data!A75>A74,Data!A75,"") ->  | B75: =IF(A75="","",Data!B75) -> 
A76: =IF(Data!A76>A75,Data!A76,"") ->  | B76: =IF(A76="","",Data!B76) -> 
A77: =IF(Data!A77>A76,Data!A77,"") ->  | B77: =IF(A77="","",Data!B77) -> 
A78: =IF(Data!A78>A77,Data!A78,"") ->  | B78: =IF(A78="","",Data!B78) -> 
A79: =IF(Data!A79>A78,Data!A79,"") ->  | B79: =IF(A79="","",Data!B79) -> 
A80: =IF(Data!A80>A79,Data!A80,"") ->  | B80: =IF(A80="","",Data!B80) -> 
A81: =IF(Data!A81>A80,Data!A81,"") ->  | B81: =IF(A81="","",Data!B81) -> 
A82: =IF(Data!A82>A81,Data!A82,"") ->  | B82: =IF(A82="","",Data!B82) -> 
A83: =IF(Data!A83>A82,Data!A83,"") ->  | B83: =IF(A83="","",Data!B83) -> 
A84: =IF(Data!A84>A83,Data!A84,"") ->  | B84: =IF(A84="","",Data!B84) -> 
A85: =IF(Data!A85>A84,Data!A85,"") ->  | B85: =IF(A85="","",Data!B85) -> 
A86: =IF(Data!A86>A85,Data!A86,"") ->  | B86: =IF(A86="","",Data!B86) -> 
A87: =IF(Data!A87>A86,Data!A87,"") ->  | B87: =IF(A87="","",Data!B87) -> 
A88: =IF(Data!A88>A87,Data!A88,"") ->  | B88: =IF(A88="","",Data!B88) -> 
A89: =IF(Data!A89>A88,Data!A89,"") ->  | B89: =IF(A89="","",Data!B89) -> 
A90: =IF(Data!A90>A89,Data!A90,"") ->  | B90: =IF(A90="","",Data!B90) -> 
A91: =IF(Data!A91>A90,Data!A91,"") ->  | B91: =IF(A91="","",Data!B91) -> 
A92: =IF(Data!A92>A91,Data!A92,"") ->  | B92: =IF(A92="","",Data!B92) -> 
A93: =IF(Data!A93>A92,Data!A93,"") ->  | B93: =IF(A93="","",Data!B93) -> 
A94: =IF(Data!A94>A93,Data!A94,"") ->  | B94: =IF(A94="","",Data!B94) -> 
A95: =IF(Data!A95>A94,Data!A95,"") ->  | B95: =IF(A95="","",Data!B95) -> 
A96: =IF(Data!A96>A95,Data!A96,"") ->  | B96: =IF(A96="","",Data!B96) -> 
A97: =IF(Data!A97>A96,Data!A97,"") ->  | B97: =IF(A97="","",Data!B97) -> 
A98: =IF(Data!A98>A97,Data!A98,"") ->  | B98: =IF(A98="","",Data!B98) -> 
A99: =IF(Data!A99>A98,Data!A99,"") ->  | B99: =IF(A99="","",Data!B99) ->  | G99: =IF(D99="","",E99*$P$2-F99*$Q$4) -> 
A100: =IF(Data!A100>A99,Data!A100,"") ->  | B100: =IF(A100="","",Data!B100) -> 
A101: =IF(Data!A101>A100,Data!A101,"") ->  | B101: =IF(A101="","",Data!B101) -> 
A102: =IF(Data!A102>A101,Data!A102,"") ->  | B102: =IF(A102="","",Data!B102) -> 
A103: =IF(Data!A103>A102,Data!A103,"") ->  | B103: =IF(A103="","",Data!B103) -> 
A104: =IF(Data!A104>A103,Data!A104,"") ->  | B104: =IF(A104="","",Data!B104) -> 
A105: =IF(Data!A105>A104,Data!A105,"") ->  | B105: =IF(A105="","",Data!B105) -> 
A106: =IF(Data!A106>A105,Data!A106,"") ->  | B106: =IF(A106="","",Data!B106) -> 
A107: =IF(Data!A107>A106,Data!A107,"") ->  | B107: =IF(A107="","",Data!B107) -> 
A108: =IF(Data!A108>A107,Data!A108,"") ->  | B108: =IF(A108="","",Data!B108) -> 
A109: =IF(Data!A109>A108,Data!A109,"") ->  | B109: =IF(A109="","",Data!B109) -> 
A110: =IF(Data!A110>A109,Data!A110,"") ->  | B110: =IF(A110="","",Data!B110) -> 
A111: =IF(Data!A111>A110,Data!A111,"") ->  | B111: =IF(A111="","",Data!B111) -> 
A112: =IF(Data!A112>A111,Data!A112,"") ->  | B112: =IF(A112="","",Data!B112) -> 
A113: =IF(Data!A113>A112,Data!A113,"") ->  | B113: =IF(A113="","",Data!B113) -> 
A114: =IF(Data!A114>A113,Data!A114,"") ->  | B114: =IF(A114="","",Data!B114) -> 
A115: =IF(Data!A115>A114,Data!A115,"") ->  | B115: =IF(A115="","",Data!B115) -> 
A116: =IF(Data!A116>A115,Data!A116,"") ->  | B116: =IF(A116="","",Data!B116) -> 
A117: =IF(Data!A117>A116,Data!A117,"") ->  | B117: =IF(A117="","",Data!B117) -> 
A118: =IF(Data!A118>A117,Data!A118,"") ->  | B118: =IF(A118="","",Data!B118) -> 
A119: =IF(Data!A119>A118,Data!A119,"") ->  | B119: =IF(A119="","",Data!B119) -> 
A120: =IF(Data!A120>A119,Data!A120,"") ->  | B120: =IF(A120="","",Data!B120) -> 
A121: =IF(Data!A121>A120,Data!A121,"") ->  | B121: =IF(A121="","",Data!B121) -> 
A122: =IF(Data!A122>A121,Data!A122,"") ->  | B122: =IF(A122="","",Data!B122) -> 
A123: =IF(Data!A123>A122,Data!A123,"") ->  | B123: =IF(A123="","",Data!B123) -> 
A124: =IF(Data!A124>A123,Data!A124,"") ->  | B124: =IF(A124="","",Data!B124) -> 
A125: =IF(Data!A125>A124,Data!A125,"") ->  | B125: =IF(A125="","",Data!B125) -> 
A126: =IF(Data!A126>A125,Data!A126,"") ->  | B126: =IF(A126="","",Data!B126) -> 
A127: =IF(Data!A127>A126,Data!A127,"") ->  | B127: =IF(A127="","",Data!B127) -> 
A128: =IF(Data!A128>A127,Data!A128,"") ->  | B128: =IF(A128="","",Data!B128) -> 
A129: =IF(Data!A129>A128,Data!A129,"") ->  | B129: =IF(A129="","",Data!B129) -> 
A130: =IF(Data!A130>A129,Data!A130,"") ->  | B130: =IF(A130="","",Data!B130) -> 
A131: =IF(Data!A131>A130,Data!A131,"") ->  | B131: =IF(A131="","",Data!B131) ->  | G131: =IF(D131="","",E131*$P$2-F131*$Q$4) -> 
A132: =IF(Data!A132>A131,Data!A132,"") ->  | B132: =IF(A132="","",Data!B132) ->  | C132: =IF(A132="","",(B132-B131)/(A132-A131)) ->  | D132: =IF(A133="","",C132*(A132-A133)/(A131-A133)+C133*(A131-A132)/(A131-A133)) ->  | E132: =IF(A133="","",B132^$N$2) ->  | F132: =IF(A133="","",B132^$O$2) ->  | H132: =B132 ->  | I132: =D132 ->  | J132: =G132 -> 
A133: =IF(Data!A133>A132,Data!A133,"") ->  | B133: =IF(A133="","",Data!B133) -> 
A134: =IF(Data!A134>A133,Data!A134,"") ->  | B134: =IF(A134="","",Data!B134) -> 
A135: =IF(Data!A135>A134,Data!A135,"") ->  | B135: =IF(A135="","",Data!B135) -> 
A136: =IF(Data!A136>A135,Data!A136,"") ->  | B136: =IF(A136="","",Data!B136) -> 
A137: =IF(Data!A137>A136,Data!A137,"") ->  | B137: =IF(A137="","",Data!B137) -> 
A138: =IF(Data!A138>A137,Data!A138,"") ->  | B138: =IF(A138="","",Data!B138) -> 
A139: =IF(Data!A139>A138,Data!A139,"") ->  | B139: =IF(A139="","",Data!B139) -> 
A140: =IF(Data!A140>A139,Data!A140,"") ->  | B140: =IF(A140="","",Data!B140) -> 
A141: =IF(Data!A141>A140,Data!A141,"") ->  | B141: =IF(A141="","",Data!B141) -> 
A142: =IF(Data!A142>A141,Data!A142,"") ->  | B142: =IF(A142="","",Data!B142) -> 
A143: =IF(Data!A143>A142,Data!A143,"") ->  | B143: =IF(A143="","",Data!B143) -> 
A144: =IF(Data!A144>A143,Data!A144,"") ->  | B144: =IF(A144="","",Data!B144) -> 
A145: =IF(Data!A145>A144,Data!A145,"") ->  | B145: =IF(A145="","",Data!B145) -> 
A146: =IF(Data!A146>A145,Data!A146,"") ->  | B146: =IF(A146="","",Data!B146) -> 
A147: =IF(Data!A147>A146,Data!A147,"") ->  | B147: =IF(A147="","",Data!B147) -> 
A148: =IF(Data!A148>A147,Data!A148,"") ->  | B148: =IF(A148="","",Data!B148) -> 
A149: =IF(Data!A149>A148,Data!A149,"") ->  | B149: =IF(A149="","",Data!B149) -> 
A150: =IF(Data!A150>A149,Data!A150,"") ->  | B150: =IF(A150="","",Data!B150) -> 
A151: =IF(Data!A151>A150,Data!A151,"") ->  | B151: =IF(A151="","",Data!B151) -> 
A152: =IF(Data!A152>A151,Data!A152,"") ->  | B152: =IF(A152="","",Data!B152) -> 
A153: =IF(Data!A153>A152,Data!A153,"") ->  | B153: =IF(A153="","",Data!B153) -> 
A154: =IF(Data!A154>A153,Data!A154,"") ->  | B154: =IF(A154="","",Data!B154) -> 
A155: =IF(Data!A155>A154,Data!A155,"") ->  | B155: =IF(A155="","",Data!B155) -> 
A156: =IF(Data!A156>A155,Data!A156,"") ->  | B156: =IF(A156="","",Data!B156) -> 
A157: =IF(Data!A157>A156,Data!A157,"") ->  | B157: =IF(A157="","",Data!B157) -> 
A158: =IF(Data!A158>A157,Data!A158,"") ->  | B158: =IF(A158="","",Data!B158) -> 
A159: =IF(Data!A159>A158,Data!A159,"") ->  | B159: =IF(A159="","",Data!B159) -> 
A160: =IF(Data!A160>A159,Data!A160,"") ->  | B160: =IF(A160="","",Data!B160) -> 
A161: =IF(Data!A161>A160,Data!A161,"") ->  | B161: =IF(A161="","",Data!B161) -> 
A162: =IF(Data!A162>A161,Data!A162,"") ->  | B162: =IF(A162="","",Data!B162) -> 
A163: =IF(Data!A163>A162,Data!A163,"") ->  | B163: =IF(A163="","",Data!B163) ->  | G163: =IF(D163="","",E163*$P$2-F163*$Q$4) -> 
A164: =IF(Data!A164>A163,Data!A164,"") ->  | B164: =IF(A164="","",Data!B164) -> 
A165: =IF(Data!A165>A164,Data!A165,"") ->  | B165: =IF(A165="","",Data!B165) -> 
A166: =IF(Data!A166>A165,Data!A166,"") ->  | B166: =IF(A166="","",Data!B166) -> 
A167: =IF(Data!A167>A166,Data!A167,"") ->  | B167: =IF(A167="","",Data!B167) -> 
A168: =IF(Data!A168>A167,Data!A168,"") ->  | B168: =IF(A168="","",Data!B168) -> 
A169: =IF(Data!A169>A168,Data!A169,"") ->  | B169: =IF(A169="","",Data!B169) -> 
A170: =IF(Data!A170>A169,Data!A170,"") ->  | B170: =IF(A170="","",Data!B170) -> 
A171: =IF(Data!A171>A170,Data!A171,"") ->  | B171: =IF(A171="","",Data!B171) -> 
A172: =IF(Data!A172>A171,Data!A172,"") ->  | B172: =IF(A172="","",Data!B172) -> 
A173: =IF(Data!A173>A172,Data!A173,"") ->  | B173: =IF(A173="","",Data!B173) -> 
A174: =IF(Data!A174>A173,Data!A174,"") ->  | B174: =IF(A174="","",Data!B174) -> 
A175: =IF(Data!A175>A174,Data!A175,"") ->  | B175: =IF(A175="","",Data!B175) -> 
A176: =IF(Data!A176>A175,Data!A176,"") ->  | B176: =IF(A176="","",Data!B176) -> 
A177: =IF(Data!A177>A176,Data!A177,"") ->  | B177: =IF(A177="","",Data!B177) -> 
A178: =IF(Data!A178>A177,Data!A178,"") ->  | B178: =IF(A178="","",Data!B178) -> 
A179: =IF(Data!A179>A178,Data!A179,"") ->  | B179: =IF(A179="","",Data!B179) -> 
A180: =IF(Data!A180>A179,Data!A180,"") ->  | B180: =IF(A180="","",Data!B180) -> 
A181: =IF(Data!A181>A180,Data!A181,"") ->  | B181: =IF(A181="","",Data!B181) -> 
A182: =IF(Data!A182>A181,Data!A182,"") ->  | B182: =IF(A182="","",Data!B182) -> 
A183: =IF(Data!A183>A182,Data!A183,"") ->  | B183: =IF(A183="","",Data!B183) -> 
A184: =IF(Data!A184>A183,Data!A184,"") ->  | B184: =IF(A184="","",Data!B184) -> 
A185: =IF(Data!A185>A184,Data!A185,"") ->  | B185: =IF(A185="","",Data!B185) -> 
A186: =IF(Data!A186>A185,Data!A186,"") ->  | B186: =IF(A186="","",Data!B186) -> 
A187: =IF(Data!A187>A186,Data!A187,"") ->  | B187: =IF(A187="","",Data!B187) -> 
A188: =IF(Data!A188>A187,Data!A188,"") ->  | B188: =IF(A188="","",Data!B188) -> 
A189: =IF(Data!A189>A188,Data!A189,"") ->  | B189: =IF(A189="","",Data!B189) -> 
A190: =IF(Data!A190>A189,Data!A190,"") ->  | B190: =IF(A190="","",Data!B190) -> 
A191: =IF(Data!A191>A190,Data!A191,"") ->  | B191: =IF(A191="","",Data!B191) -> 
A192: =IF(Data!A192>A191,Data!A192,"") ->  | B192: =IF(A192="","",Data!B192) -> 
A193: =IF(Data!A193>A192,Data!A193,"") ->  | B193: =IF(A193="","",Data!B193) -> 
A194: =IF(Data!A194>A193,Data!A194,"") ->  | B194: =IF(A194="","",Data!B194) -> 
A195: =IF(Data!A195>A194,Data!A195,"") ->  | B195: =IF(A195="","",Data!B195) ->  | G195: =IF(D195="","",E195*$P$2-F195*$Q$4) -> 
A196: =IF(Data!A196>A195,Data!A196,"") ->  | B196: =IF(A196="","",Data!B196) ->  | C196: =IF(A196="","",(B196-B195)/(A196-A195)) ->  | D196: =IF(A197="","",C196*(A196-A197)/(A195-A197)+C197*(A195-A196)/(A195-A197)) ->  | E196: =IF(A197="","",B196^$N$2) ->  | F196: =IF(A197="","",B196^$O$2) ->  | H196: =B196 ->  | I196: =D196 ->  | J196: =G196 -> 
A197: =IF(Data!A197>A196,Data!A197,"") ->  | B197: =IF(A197="","",Data!B197) -> 
A198: =IF(Data!A198>A197,Data!A198,"") ->  | B198: =IF(A198="","",Data!B198) -> 
A199: =IF(Data!A199>A198,Data!A199,"") ->  | B199: =IF(A199="","",Data!B199) -> 
A200: =IF(Data!A200>A199,Data!A200,"") ->  | B200: =IF(A200="","",Data!B200) -> 

Sheet Model_Gen
C1: Model parameters | E1: a | F1: b | G1: p | H1: q | I1: m_0 | J1: m_max | K1: SSR | L1: mobs | M1: mmax/mobs | N1: obsmin
E2: 0.99 | F2: 1 | G2: =H2*J2^(1-E2) -> 1.532628337 | H2: 1.381696253 | I2: 656.8949233 | J2: 31,800.00 | K2: =SUM(D:D) -> 2,539,449.37 | L2: =MAX(B:B) -> 31,800.00 | M2: =J2/L2 -> 1 | N2: =MIN(B:B) -> 410
I3: =N2/100 -> 4.1 | J3: =100*L2 -> 3,180,000.00
I4: min_mo | J4: max_mmax
A5: =Data!A1 -> Age (d) | B5: =Data!B1 -> Weight (g) | C5: m(t) | D5: error^2
A6: =Data!A2 -> 0 | B6: =Data!B2 -> 410 | C6: =$J$2*((1-(1-($I$2/$J$2)^(1-$E$2))*EXP(-$H$2*(1-$E$2)*A6))^(1/(1-$E$2))) -> 656.8949233 | D6: =(B6-C6)^2 -> 60957.10317
A7: =Data!A3 -> 2 | B7: =Data!B3 -> 435 | C7: 731.6392201 | D7: =(B7-C7)^2 -> 87994.82689 | K7: Solution:
A8: =Data!A4 -> 3 | B8: =Data!B4 -> 736 | C8: 771.2560566 | D8: 1242.989528
A9: =Data!A5 -> 8 | B9: =Data!B5 -> 736 | C9: 992.9114411 | D9: 66003.48859
A10: =Data!A6 -> 15 | B10: =Data!B6 -> 1126 | C10: 1373.74684 | D10: 61378.49697
A11: =Data!A7 -> 61 | B11: =Data!B7 -> 5900 | C11: 6096.521553 | D11: 38620.7206
A12: =Data!A8 -> 68 | B12: =Data!B8 -> 6900 | C12: 7107.408161 | D12: 43018.14542
A13: =Data!A9 -> 75 | B13: =Data!B9 -> 7900 | C13: 8167.883834 | D13: 71761.74852
A14: =Data!A10 -> 83 | B14: =Data!B10 -> 9400 | C14: 9424.557295 | D14: 603.0607434
A15: =Data!A11 -> 89 | B15: =Data!B11 -> 10700 | C15: 10387.64327 | D15: 97566.72747
A16: =Data!A12 -> 96 | B16: =Data!B12 -> 11700 | C16: 11522.33858 | D16: 31563.58106
A17: =Data!A13 -> 103 | B17: =Data!B13 -> 13200 | C17: 12658.23605 | D17: 293508.1784
A18: =Data!A14 -> 117 | B18: =Data!B14 -> 15000 | C18: 14893.67022 | D18: 11306.02259
A19: =Data!A15 -> 124 | B19: =Data!B15 -> 16600 | C19: 15976.28532 | D19: 389020
A20: =Data!A16 -> 141 | B20: =Data!B16 -> 18500 | C20: 18459.88854 | D20: 1608.929107
A21: =Data!A17 -> 169 | B21: =Data!B17 -> 21500 | C21: 21986.04523 | D21: 236239.9636
A22: =Data!A18 -> 178 | B22: =Data!B18 -> 22400 | C22: 22957.23022 | D22: 310505.5189
A23: =Data!A19 -> 192 | B23: =Data!B19 -> 24500 | C23: 24313.14263 | D23: 34915.67537
A24: =Data!A20 -> 215 | B24: =Data!B20 -> 25500 | C24: 26158.4507 | D24: 433557.3191
A25: =Data!A21 -> 288 | B25: =Data!B21 -> 30000 | C25: 29615.08214 | D25: 148161.7616
A26: =Data!A22 -> 389 | B26: =Data!B22 -> 31000 | C26: 31244.35376 | D26: 59708.759
A27: =Data!A23 -> 420 | B27: =Data!B23 -> 31500 | C27: =$J$2*((1-(1-($I$2/$J$2)^(1-$E$2))*EXP(-$H$2*(1-$E$2)*A27))^(1/(1-$E$2))) -> 31436.84173 | D27: =(B27-C27)^2 -> 3988.967467
A28: =Data!A24 -> 451 | B28: =Data!B24 -> 31800 | C28: 31562.89795 | D28: 56217.38293

Sheet Summary
A1: Generalized Bertalanffy model, dm/dt = p*m^a-q*m, for different values of the exponent a | O1: min AIC | P1: data | Q1: parameters | R1: a_opt | S1: mmax/mopt | T1: prob 0,67
A2: data fitting for weight as function m(t) of age t | J2: evidence | O2: =MIN(H:H) -> 268.9760388 | P2: =Data!F3 -> 23 | Q2: 4 | R2: =MAX(M:M) -> 0.83 | S2: =MAX(N:N) -> 1.006394068 | T2: =VLOOKUP(0.67,K4:L102,2) -> 2%
A3: a | B3: b | C3: p | D3: q | E3: m_0 | F3: m_max | G3: SSR | H3: AIC | I3: prob | J3: ratio for best | K3: a | L3: prob | M3: auswahl a | N3: Auswahl mmax/mobs | Q3: m_max, q, m0 and SSR | T3: 0.67
A4: 0 | B4: 1 | C4: 163.3373071 | D4: 0.004102587552 | E4: 4.1 | F4: 39813.24105 | G4: 64468613.1 | H4: =$P$2*LN(G4/$P$2)+2*$Q$2+$Q$2*($Q$2+1)/($P$2-$Q$2-1) -> 350.5735922 | I4: =EXP(-(H4-$O$2)/2)/(1+EXP(-(H4-$O$2)/2)) -> 0.00% | J4: =IF(I4=0,10^10,MIN(1/EXP(-(H4-$O$2)/2),10^10)) -> 10000000000 | K4: =A4 -> 0 | L4: =I4 -> 0.0% | M4: =IF(J4=1,K4,-1) -> -1 | N4: =IF(J4=1,F4/Data!$F$4,-1) -> -1
A5: 0.01 | B5: 1 | C5: 150.4801971 | D5: 0.004224718747 | E5: 4.1 | F5: 39596.62136 | G5: 63106195.17 | H5: =$P$2*LN(G5/$P$2)+2*$Q$2+$Q$2*($Q$2+1)/($P$2-$Q$2-1) -> 350.0823227 | I5: =EXP(-(H5-$O$2)/2)/(1+EXP(-(H5-$O$2)/2)) -> 0.00% | J5: =IF(I5=0,10^10,MIN(1/EXP(-(H5-$O$2)/2),10^10)) -> 10000000000 | K5: =A5 -> 0.01 | L5: =I5 -> 0.0% | M5: =IF(J5=1,K5,-1) -> -1 | N5: =IF(J5=1,F5/Data!$F$4,-1) -> -1
A6: 0.02 | B6: 1 | C6: 138.6533245 | D6: 0.00435009566 | E6: 4.1 | F6: 39385.67062 | G6: 61746056.35 | H6: 349.5811795 | I6: 0.00% | J6: 10000000000 | K6: 0.02 | L6: 0.0% | M6: -1 | N6: =IF(J6=1,F6/Data!$F$4,-1) -> -1
A7: 0.03 | B7: 1 | C7: 127.7731301 | D7: 0.004478843042 | E7: 4.1 | F7: 39180.11088 | G7: 60388406.85 | H7: 349.0698214 | I7: 0.00% | J7: 10000000000 | K7: 0.03 | L7: 0.0% | M7: -1 | N7: =IF(J7=1,F7/Data!$F$4,-1) -> -1
A8: 0.04 | B8: 1 | C8: 117.763024 | D8: 0.004611085083 | E8: 4.1 | F8: 38979.7805 | G8: 59033466.84 | H8: 348.5478909 | I8: 0.00% | J8: 10000000000 | K8: 0.04 | L8: 0.0% | M8: -1 | N8: =IF(J8=1,F8/Data!$F$4,-1) -> -1
A9: 0.05 | B9: 1 | C9: 108.5523492 | D9: 0.004746939287 | E9: 4.1 | F9: 38784.52465 | G9: 57681466.96 | H9: 348.0150133 | I9: 0.00% | J9: 10000000000 | K9: 0.05 | L9: 0.0% | M9: -1 | N9: =IF(J9=1,F9/Data!$F$4,-1) -> -1
A10: 0.06 | B10: 1 | C10: 100.0765302 | D10: 0.004886565323 | E10: 4.1 | F10: 38593.99298 | G10: 56332648.9 | H10: 347.4707953 | I10: 0.00% | J10: 10000000000 | K10: 0.06 | L10: 0.0% | M10: -1 | N10: =IF(J10=1,F10/Data!$F$4,-1) -> -1
A11: 0.07 | B11: 1 | C11: 92.27601587 | D11: 0.005030080713 | E11: 4.1 | F11: 38408.1623 | G11: 54987265.92 | H11: 346.9148245 | I11: 0.00% | J11: 10000000000 | K11: 0.07 | L11: 0.0% | M11: -1 | N11: =IF(J11=1,F11/Data!$F$4,-1) -> -1
A12: 0.08 | B12: 1 | C12: 85.09628627 | D12: 0.005177640301 | E12: 4.1 | F12: 38226.82128 | G12: 53645583.5 | H12: 346.3466673 | I12: 0.00% | J12: 10000000000 | K12: 0.08 | L12: 0.0% | M12: -1 | N12: =IF(J12=1,F12/Data!$F$4,-1) -> -1
A13: 0.09 | B13: 1 | C13: 78.48707906 | D13: 0.005329387392 | E13: 4.1 | F13: 38049.82045 | G13: 52307880.01 | H13: 345.7658686 | I13: 0.00% | J13: 10000000000 | K13: 0.09 | L13: 0.0% | M13: -1 | N13: =IF(J13=1,F13/Data!$F$4,-1) -> -1
A14: 0.1 | B14: 1 | C14: 72.40266426 | D14: 0.005485513464 | E14: 4.1 | F14: 37876.9269 | G14: 50974447.3 | H14: 345.1719499 | I14: 0.00% | J14: 10000000000 | K14: 0.1 | L14: 0.0% | M14: -1 | N14: =IF(J14=1,F14/Data!$F$4,-1) -> -1
A15: 0.11 | B15: 1 | C15: 66.8006321 | D15: 0.005646174716 | E15: 4.1 | F15: 37708.04347 | G15: 49645591.48 | H15: 344.5644077 | I15: 0.00% | J15: 10000000000 | K15: 0.11 | L15: 0.0% | M15: -1 | N15: =IF(J15=1,F15/Data!$F$4,-1) -> -1
A16: 0.12 | B16: 1 | C16: 61.64217259 | D16: 0.005811554444 | E16: 4.1 | F16: 37543.01275 | G16: 48321633.61 | H16: 343.9427123 | I16: 0.00% | J16: 10000000000 | K16: 0.12 | L16: 0.0% | M16: -1 | N16: =IF(J16=1,F16/Data!$F$4,-1) -> -1
A17: 0.13 | B17: 1 | C17: 56.8916268 | D17: 0.005981844608 | E17: 4.1 | F17: 37381.68554 | G17: 47002910.51 | H17: 343.3063061 | I17: 0.00% | J17: 10000000000 | K17: 0.13 | L17: 0.0% | M17: -1 | N17: =IF(J17=1,F17/Data!$F$4,-1) -> -1
A18: 0.14 | B18: 1 | C18: 52.51624092 | D18: 0.006157246742 | E18: 4.1 | F18: 37223.92629 | G18: 45689775.56 | H18: 342.6546015 | I18: 0.00% | J18: 10000000000 | K18: 0.14 | L18: 0.0% | M18: -1 | N18: =IF(J18=1,F18/Data!$F$4,-1) -> -1
A19: 0.15 | B19: 1 | C19: 48.48587177 | D19: 0.006337953611 | E19: 4.1 | F19: 37069.69415 | G19: 44382599.53 | H19: 341.9869793 | I19: 0.00% | J19: 10000000000 | K19: 0.15 | L19: 0.0% | M19: -1 | N19: =IF(J19=1,F19/Data!$F$4,-1) -> -1
A20: 0.16 | B20: 1 | C20: 44.77284135 | D20: 0.006524195638 | E20: 4.1 | F20: 36918.77131 | G20: 43081771.53 | H20: 341.3027864 | I20: 0.00% | J20: 10000000000 | K20: 0.16 | L20: 0.0% | M20: -1 | N20: =IF(J20=1,F20/Data!$F$4,-1) -> -1 | O20: Figure: Probability that exponent a is true, when compared with a_opt
A21: 0.17 | B21: 1 | C21: 41.35181878 | D21: 0.00671621203 | E21: 4.1 | F21: 36771.07159 | G21: 41787699.88 | H21: 340.6013338 | I21: 0.00% | J21: 10000000000 | K21: 0.17 | L21: 0.0% | M21: -1 | N21: =IF(J21=1,F21/Data!$F$4,-1) -> -1
A22: 0.18 | B22: 1 | C22: 38.19946044 | D22: 0.006914257106 | E22: 4.1 | F22: 36626.44443 | G22: 40500813.14 | H22: 339.8818942 | I22: 0.00% | J22: 10000000000 | K22: 0.18 | L22: 0.0% | M22: -1 | N22: =IF(J22=1,F22/Data!$F$4,-1) -> -1
A23: 0.19 | B23: 1 | C23: 35.29417114 | D23: 0.007118546629 | E23: 4.1 | F23: 36484.8993 | G23: 39221561.07 | H23: 339.1436993 | I23: 0.00% | J23: 10000000000 | K23: 0.19 | L23: 0.0% | M23: -1 | N23: =IF(J23=1,F23/Data!$F$4,-1) -> -1
A24: 0.2 | B24: 1 | C24: 32.61635384 | D24: 0.007329389855 | E24: 4.1 | F24: 36346.2395 | G24: 37950415.74 | H24: 338.3859375 | I24: 0.00% | J24: 10000000000 | K24: 0.2 | L24: 0.0% | M24: -1 | N24: =IF(J24=1,F24/Data!$F$4,-1) -> -1
A25: 0.21 | B25: 1 | C25: 30.14787086 | D25: 0.007547071792 | E25: 4.1 | F25: 36210.38316 | G25: 36687872.62 | H25: 337.6077508 | I25: 0.00% | J25: 10000000000 | K25: 0.21 | L25: 0.0% | M25: -1 | N25: =IF(J25=1,F25/Data!$F$4,-1) -> -1
A26: 0.22 | B26: 1 | C26: 27.87195351 | D26: 0.00777186094 | E26: 4.1 | F26: 36077.28359 | G26: 35434451.71 | H26: 336.8082318 | I26: 0.00% | J26: 10000000000 | K26: 0.22 | L26: 0.0% | M26: -1 | N26: =IF(J26=1,F26/Data!$F$4,-1) -> -1
A27: 0.23 | B27: 1 | C27: 25.77339569 | D27: 0.008004116276 | E27: 4.1 | F27: 35946.78615 | G27: 34190698.77 | H27: 335.9864207 | I27: 0.00% | J27: 10000000000 | K27: 0.23 | L27: 0.0% | M27: -1 | N27: =IF(J27=1,F27/Data!$F$4,-1) -> -1
A28: 0.24 | B28: 1 | C28: 23.83808758 | D28: 0.008244163878 | E28: 4.1 | F28: 35818.84454 | G28: 32957186.53 | H28: 335.1413018 | I28: 0.00% | J28: 10000000000 | K28: 0.24 | L28: 0.0% | M28: -1 | N28: =IF(J28=1,F28/Data!$F$4,-1) -> -1
A29: 0.25 | B29: 1 | C29: 22.05303034 | D29: 0.008492348437 | E29: 4.1 | F29: 35693.34861 | G29: 31734515.99 | H29: 334.2718002 | I29: 0.00% | J29: 10000000000 | K29: 0.25 | L29: 0.0% | M29: -1 | N29: =IF(J29=1,F29/Data!$F$4,-1) -> -1
A30: 0.26 | B30: 1 | C30: 20.40636869 | D30: 0.008749062282 | E30: 4.1 | F30: 35570.23914 | G30: 30523317.74 | H30: 333.3767779 | I30: 0.00% | J30: 10000000000 | K30: 0.26 | L30: 0.0% | M30: -1 | N30: =IF(J30=1,F30/Data!$F$4,-1) -> -1
A31: 0.27 | B31: 1 | C31: 18.88713588 | D31: 0.009014701208 | E31: 4.1 | F31: 35449.43122 | G31: 29324253.33 | H31: 332.4550304 | I31: 0.00% | J31: 10000000000 | K31: 0.27 | L31: 0.0% | M31: -1 | N31: =IF(J31=1,F31/Data!$F$4,-1) -> -1
A32: 0.28 | B32: 1 | C32: 17.48526238 | D32: 0.009289689768 | E32: 4.1 | F32: 35330.85011 | G32: 28138016.7 | H32: 331.5052831 | I32: 0.00% | J32: 10000000000 | K32: 0.28 | L32: 0.0% | M32: -1 | N32: =IF(J32=1,F32/Data!$F$4,-1) -> -1
A33: 0.29 | B33: 1 | C33: 16.1914877 | D33: 0.009574479108 | E33: 4.1 | F33: 35214.42174 | G33: 26965335.6 | H33: 330.526187 | I33: 0.00% | J33: 10000000000 | K33: 0.29 | L33: 0.0% | M33: -1 | N33: =IF(J33=1,F33/Data!$F$4,-1) -> -1
A34: 0.3 | B34: 1 | C34: 14.99729532 | D34: 0.009869550382 | E34: 4.1 | F34: 35100.06855 | G34: 25806973.11 | H34: 329.5163158 | I34: 0.00% | J34: 10000000000 | K34: 0.3 | L34: 0.0% | M34: -1 | N34: =IF(J34=1,F34/Data!$F$4,-1) -> -1
A35: 0.31 | B35: 1 | C35: 13.89484381 | D35: 0.01017540981 | E35: 4.1 | F35: 34987.71611 | G35: 24663729.14 | H35: 328.4741623 | I35: 0.00% | J35: 10000000000 | K35: 0.31 | L35: 0.0% | M35: -1 | N35: =IF(J35=1,F35/Data!$F$4,-1) -> -1
A36: 0.32 | B36: 1 | C36: 12.87691885 | D36: 0.0104925881 | E36: 4.1 | F36: 34877.32264 | G36: 23536442 | H36: 327.3981357 | I36: 0.00% | J36: 10000000000 | K36: 0.32 | L36: 0.0% | M36: -1 | N36: =IF(J36=1,F36/Data!$F$4,-1) -> -1
A37: 0.33 | B37: 1 | C37: 11.93689055 | D37: 0.01082166315 | E37: 4.1 | F37: 34768.81198 | G37: 22425989.94 | H37: 326.2865597 | I37: 0.00% | J37: 10000000000 | K37: 0.33 | L37: 0.0% | M37: -1 | N37: =IF(J37=1,F37/Data!$F$4,-1) -> -1
A38: 0.34 | B38: 1 | C38: 11.06865505 | D38: 0.01116324481 | E38: 4.1 | F38: 34662.1229 | G38: 21333292.83 | H38: 325.1376716 | I38: 0.00% | J38: 10000000000 | K38: 0.34 | L38: 0.0% | M38: -1 | N38: =IF(J38=1,F38/Data!$F$4,-1) -> -1
A39: 0.35 | B39: 1 | C39: 10.26659803 | D39: 0.01151798381 | E39: 4.1 | F39: 34557.2048 | G39: 20259313.67 | H39: 323.9496233 | I39: 0.00% | J39: 10000000000 | K39: 0.35 | L39: 0.0% | M39: -1 | N39: =IF(J39=1,F39/Data!$F$4,-1) -> -1
A40: 0.36 | B40: 1 | C40: 9.525537346 | D40: 0.01188655684 | E40: 4.1 | F40: 34454.00458 | G40: 19205060.3 | H40: 322.7204844 | I40: 0.00% | J40: 10000000000 | K40: 0.36 | L40: 0.0% | M40: -1 | N40: =IF(J40=1,F40/Data!$F$4,-1) -> -1
A41: 0.37 | B41: 1 | C41: 8.840738749 | D41: 0.01226974429 | E41: 4.1 | F41: 34352.41035 | G41: 18171586.96 | H41: 321.448249 | I41: 0.00% | J41: 10000000000 | K41: 0.37 | L41: 0.0% | M41: -1 | N41: =IF(J41=1,F41/Data!$F$4,-1) -> -1
A42: 0.38 | B42: 1 | C42: 8.20780996 | D42: 0.01266831357 | E42: 4.1 | F42: 34252.40808 | G42: 17159995.92 | H42: 320.1308467 | I42: 0.00% | J42: 10000000000 | K42: 0.38 | L42: 0.0% | M42: -1 | N42: =IF(J42=1,F42/Data!$F$4,-1) -> -1
A43: 0.39 | B43: 1 | C43: 7.62271649 | D43: 0.01308310466 | E43: 4.1 | F43: 34153.94734 | G43: 16171439.05 | H43: 318.7661603 | I43: 0.00% | J43: 10000000000 | K43: 0.39 | L43: 0.0% | M43: -1 | N43: =IF(J43=1,F43/Data!$F$4,-1) -> -1
A44: 0.4 | B44: 1 | C44: 7.081749367 | D44: 0.01351503103 | E44: 4.1 | F44: 34056.9571 | G44: 15207119.39 | H44: 317.3520521 | I44: 0.00% | J44: 10000000000 | K44: 0.4 | L44: 0.0% | M44: -1 | N44: =IF(J44=1,F44/Data!$F$4,-1) -> -1
A45: 0.41 | B45: 1 | C45: 6.581488005 | D45: 0.01396505299 | E45: 4.1 | F45: 33961.40147 | G45: 14268292.65 | H45: 315.8864019 | I45: 0.00% | J45: 10000000000 | K45: 0.41 | L45: 0.0% | M45: -1 | N45: =IF(J45=1,F45/Data!$F$4,-1) -> -1
A46: 0.42 | B46: 1 | C46: 6.118786887 | D46: 0.01443421775 | E46: 4.1 | F46: 33867.21145 | G46: 13356268.62 | H46: 314.3671612 | I46: 0.00% | J46: 7187154437 | K46: 0.42 | L46: 0.0% | M46: -1 | N46: =IF(J46=1,F46/Data!$F$4,-1) -> -1
A47: 0.43 | B47: 1 | C47: 5.690745934 | D47: 0.01492363767 | E47: 4.1 | F47: 33774.33781 | G47: 12472412.55 | H47: 312.7924288 | I47: 0.00% | J47: 3270455064 | K47: 0.43 | L47: 0.0% | M47: -1 | N47: =IF(J47=1,F47/Data!$F$4,-1) -> -1
A48: 0.44 | B48: 1 | C48: 5.294695063 | D48: 0.01543450968 | E48: 4.1 | F48: 33682.73503 | G48: 11618146.39 | H48: 311.160556 | I48: 0.00% | J48: 1446277127 | K48: 0.44 | L48: 0.0% | M48: -1 | N48: =IF(J48=1,F48/Data!$F$4,-1) -> -1
A49: 0.45 | B49: 1 | C49: 4.928174671 | D49: 0.01596812237 | E49: 4.1 | F49: 33592.35389 | G49: 10794949.92 | H49: 309.4702908 | I49: 0.00% | J49: 621176585.5 | K49: 0.45 | L49: 0.0% | M49: -1 | N49: =IF(J49=1,F49/Data!$F$4,-1) -> -1
A50: 0.46 | B50: 1 | C50: 4.58891887 | D50: 0.01652586353 | E50: 4.1 | F50: 33503.14587 | G50: 10004361.77 | H50: 307.720974 | I50: 0.00% | J50: 259033401.6 | K50: 0.46 | L50: 0.0% | M50: -1 | N50: =IF(J50=1,F50/Data!$F$4,-1) -> -1
A51: 0.47 | B51: 1 | C51: 4.27484001 | D51: 0.01710922956 | E51: 4.1 | F51: 33415.0632 | G51: 9247980.165 | H51: 305.9128058 | I51: 0.00% | J51: 104885883.1 | K51: 0.47 | L51: 0.0% | M51: -1 | N51: =IF(J51=1,F51/Data!$F$4,-1) -> -1
A52: 0.48 | B52: 1 | C52: 3.984014462 | D52: 0.01771983592 | E52: 4.1 | F52: 33328.05885 | G52: 8527463.619 | H52: 304.0472023 | I52: 0.00% | J52: 41267330.28 | K52: 0.48 | L52: 0.0% | M52: -1 | N52: =IF(J52=1,F52/Data!$F$4,-1) -> -1
A53: 0.49 | B53: 1 | C53: 3.714669584 | D53: 0.01835942907 | E53: 4.1 | F53: 33242.08618 | G53: 7844531.271 | H53: 302.1272696 | I53: 0.00% | J53: 15801499.16 | K53: 0.49 | L53: 0.0% | M53: -1 | N53: =IF(J53=1,F53/Data!$F$4,-1) -> -1
A54: 0.5 | B54: 1 | C54: 3.465171592 | D54: 0.01902989812 | E54: 4.1 | F54: 33157.10192 | G54: 7200963.037 | H54: 300.1584267 | I54: 0.00% | J54: 5904314.705 | K54: 0.5 | L54: 0.0% | M54: -1 | N54: =IF(J54=1,F54/Data!$F$4,-1) -> -1
A55: 0.51 | B55: 1 | C55: 3.234014867 | D55: 0.01973329424 | E55: 4.1 | F55: 33073.05609 | G55: 6598599.441 | H55: 298.1492077 | I55: 0.00% | J55: 2162086.757 | K55: 0.51 | L55: 0.0% | M55: -1 | N55: =IF(J55=1,F55/Data!$F$4,-1) -> -1
A56: 0.52 | B56: 1 | C56: 3.019811344 | D56: 0.02047184044 | E56: 4.1 | F56: 32989.90707 | G56: 6039341.127 | H56: 296.1122702 | I56: 0.00% | J56: 780832.2825 | K56: 0.52 | L56: 0.0% | M56: -1 | N56: =IF(J56=1,F56/Data!$F$4,-1) -> -1
A57: 0.53 | B57: 1 | C57: 2.821284154 | D57: 0.02124797859 | E57: 4.1 | F57: 32907.59854 | G57: 5525147.998 | H57: 294.0656178 | I57: 0.00% | J57: 280629.1871 | K57: 0.53 | L57: 0.0% | M57: -1 | N57: =IF(J57=1,F57/Data!$F$4,-1) -> -1
A58: 0.54 | B58: 1 | C58: 2.63724809 | D58: 0.02206429488 | E58: 4.1 | F58: 32826.11 | G58: 5058037.964 | H58: 292.033996 | I58: 0.00% | J58: 101618.2666 | K58: 0.54 | L58: 0.0% | M58: -1 | N58: =IF(J58=1,F58/Data!$F$4,-1) -> -1
A59: 0.55 | B59: 1 | C59: 2.466618974 | D59: 0.02292369131 | E59: 4.1 | F59: 32745.38012 | G59: 4640085.234 | H59: 290.0503399 | I59: 0.00% | J59: 37690.0165 | K59: 0.55 | L59: 0.0% | M59: -1 | N59: =IF(J59=1,F59/Data!$F$4,-1) -> -1
A60: 0.56 | B60: 1 | C60: 2.308392871 | D60: 0.02382929141 | E60: 4.1 | F60: 32665.38027 | G60: 4273418.131 | H60: 288.1570091 | I60: 0.01% | J60: 14624.96292 | K60: 0.56 | L60: 0.0% | M60: -1 | N60: =IF(J60=1,F60/Data!$F$4,-1) -> -1
A61: 0.57 | B61: 1 | C61: 2.161646802 | D61: 0.02478455413 | E61: 4.1 | F61: 32586.04736 | G61: 3960216.389 | H61: 286.4063563 | I61: 0.02% | J61: 6094.602008 | K61: 0.57 | L61: 0.0% | M61: -1 | N61: =IF(J61=1,F61/Data!$F$4,-1) -> -1
A62: 0.58 | B62: 1 | C62: 2.025528153 | D62: 0.02579325143 | E62: 4.1 | F62: 32507.33824 | G62: 3702707.876 | H62: 284.8599684 | I62: 0.04% | J62: 2812.881797 | K62: 0.58 | L62: 0.0% | M62: -1 | N62: =IF(J62=1,F62/Data!$F$4,-1) -> -1
A63: 0.59 | B63: 1 | C63: 1.899247686 | D63: 0.02685947759 | E63: 4.1 | F63: 32429.23426 | G63: 3503164.729 | H63: 283.5858226 | I63: 0.07% | J63: 1487.559151 | K63: 0.59 | L63: 0.1% | M63: -1 | N63: =IF(J63=1,F63/Data!$F$4,-1) -> -1
A64: 0.6 | B64: 1 | C64: 1.782085199 | D64: 0.0279878622 | E64: 4.1 | F64: 32351.68017 | G64: 3363898.833 | H64: 282.6528023 | I64: 0.11% | J64: 932.9781216 | K64: 0.6 | L64: 0.1% | M64: -1 | N64: =IF(J64=1,F64/Data!$F$4,-1) -> -1
A65: 0.61 | B65: 1 | C65: 1.655272066 | D65: 0.02884547512 | E65: 9.790825211 | F65: 32338.67939 | G65: 3260617.567 | H65: 281.9355691 | I65: 0.15% | J65: 651.8178426 | K65: 0.61 | L65: 0.2% | M65: -1 | N65: =IF(J65=1,F65/Data!$F$4,-1) -> -1
A66: 0.62 | B66: 1 | C66: 1.537020655 | D66: 0.02971818712 | E66: 18.54678766 | F66: 32331.41505 | G66: 3155360.194 | H66: 281.1808481 | I66: 0.22% | J66: 446.9311732 | K66: 0.62 | L66: 0.2% | M66: -1 | N66: =IF(J66=1,F66/Data!$F$4,-1) -> -1
A67: 0.63 | B67: 1 | C67: 1.42868002 | D67: 0.03064922198 | E67: 29.3133675 | F67: 32322.23592 | G67: 3049544.591 | H67: 280.3963091 | I67: 0.33% | J67: 301.9118587 | K67: 0.63 | L67: 0.3% | M67: -1 | N67: =IF(J67=1,F67/Data!$F$4,-1) -> -1
A68: 0.64 | B68: 1 | C68: 1.329342805 | D68: 0.03164237202 | E68: 41.64683022 | F68: 32311.37477 | G68: 2944642.042 | H68: 279.591194 | I68: 0.49% | J68: 201.8606443 | K68: 0.64 | L68: 0.5% | M68: -1 | N68: =IF(J68=1,F68/Data!$F$4,-1) -> -1
A69: 0.65 | B69: 1 | C69: 1.238160922 | D69: 0.03270091539 | E69: 55.22601787 | F69: 32299.21381 | G69: 2841824.402 | H69: =$P$2*LN(G69/$P$2)+2*$Q$2+$Q$2*($Q$2+1)/($P$2-$Q$2-1) -> 278.7737505 | I69: =EXP(-(H69-$O$2)/2)/(1+EXP(-(H69-$O$2)/2)) -> 0.74% | J69: =IF(I69=0,10^10,MIN(1/EXP(-(H69-$O$2)/2),10^10)) -> 134.1362184 | K69: =A69 -> 0.65 | L69: =I69 -> 0.7% | M69: =IF(J69=1,K69,-1) -> -1 | N69: =IF(J69=1,F69/Data!$F$4,-1) -> -1
A70: 0.66 | B70: 1 | C70: 1.15441792 | D70: 0.03382973974 | E70: 69.78068063 | F70: 32285.90391 | G70: 2742020.423 | H70: 277.9514727 | I70: 1.11% | J70: 88.91820526 | K70: 0.66 | L70: 1.1% | M70: -1 | N70: =IF(J70=1,F70/Data!$F$4,-1) -> -1
A71: 0.67 | B71: 1 | C71: 1.0774531 | D71: 0.03503379321 | E71: 85.11533829 | F71: 32271.70098 | G71: 2645964.89 | H71: 277.1313103 | I71: 1.67% | J71: 59.00579889 | K71: 0.67 | L71: 1.7% | M71: -1 | N71: =IF(J71=1,F71/Data!$F$4,-1) -> -1
A72: 0.68 | B72: 1 | C72: 1.006686919 | D72: 0.03631916477 | E72: 101.0745042 | F72: 32256.745 | G72: 2554238.285 | H72: 276.3198302 | I72: 2.48% | J72: 39.32638486 | K72: 0.68 | L72: 2.5% | M72: -1 | N72: =IF(J72=1,F72/Data!$F$4,-1) -> -1
A73: 0.69 | B73: 1 | C73: 0.9416076455 | D73: 0.03769315304 | E73: 117.5196288 | F73: 32241.20889 | G73: 2467298.067 | H73: 275.523331 | I73: 3.65% | J73: 26.40744722 | K73: 0.69 | L73: 3.6% | M73: -1 | N73: =IF(J73=1,F73/Data!$F$4,-1) -> -1
A74: 0.7 | B74: 1 | C74: 0.881737934 | D74: 0.03916343973 | E74: 134.3740436 | F74: 32225.20246 | G74: 2385503.188 | H74: 274.7479189 | I74: 5.29% | J74: 17.92040516 | K74: 0.7 | L74: 5.3% | M74: -1 | N74: =IF(J74=1,F74/Data!$F$4,-1) -> -1
A75: 0.71 | B75: 1 | C75: 0.8266643556 | D75: 0.04073957739 | E75: 151.5432613 | F75: 32208.81904 | G75: 2309133.173 | H75: 273.9995477 | I75: 7.50% | J75: 12.32653701 | K75: 0.71 | L75: 7.5% | M75: -1 | N75: =IF(J75=1,F75/Data!$F$4,-1) -> -1
A76: 0.72 | B76: 1 | C76: 0.7760098837 | D76: 0.04243237053 | E76: 168.9680831 | F76: 32192.14016 | G76: 2238403.186 | H76: 273.2840302 | I76: 10.40% | J76: 8.61922929 | K76: 0.72 | L76: 10.4% | M76: -1 | N76: =IF(J76=1,F76/Data!$F$4,-1) -> -1
A77: 0.73 | B77: 1 | C77: 0.7294353334 | D77: 0.04425435142 | E77: 186.5905768 | F77: 32175.22123 | G77: 2173475.903 | H77: 272.6070237 | I77: 14.00% | J77: 6.144101034 | K77: 0.73 | L77: 14.0% | M77: -1 | N77: =IF(J77=1,F77/Data!$F$4,-1) -> -1
A78: 0.74 | B78: 1 | C78: 0.6866288809 | D78: 0.04621961684 | E78: 204.3851137 | F78: 32158.16456 | G78: 2114470.975 | H78: 271.973994 | I78: 18.26% | J78: 4.477109139 | K78: 0.74 | L78: 18.3% | M78: -1 | N78: =IF(J78=1,F78/Data!$F$4,-1) -> -1
A79: 0.75 | B79: 1 | C79: 0.647319393 | D79: 0.04834524079 | E79: 222.3011747 | F79: 32141.01312 | G79: 2061472.572 | H79: 271.3901601 | I79: 23.02% | J79: 3.343641906 | K79: 0.75 | L79: 23.0% | M79: -1 | N79: =IF(J79=1,F79/Data!$F$4,-1) -> -1
A80: 0.76 | B80: 1 | C80: 0.611260241 | D80: 0.05065097514 | E80: 240.3093675 | F80: 32123.76246 | G80: 2014535.524 | H80: 270.8604262 | I80: 28.05% | J80: 2.565603295 | K80: 0.76 | L80: 28.0% | M80: -1 | N80: =IF(J80=1,F80/Data!$F$4,-1) -> -1
A81: 0.77 | B81: 1 | C81: 0.5782299841 | D81: 0.05315992006 | E81: 258.3853075 | F81: 32106.47016 | G81: 1973690.265 | H81: 270.3893025 | I81: 33.03% | J81: 2.027151923 | K81: 0.77 | L81: 33.0% | M81: -1 | N81: =IF(J81=1,F81/Data!$F$4,-1) -> -1
A82: 0.78 | B82: 1 | C82: 0.5480331629 | D82: 0.05589950766 | E82: 276.5087647 | F82: 32089.16671 | G82: 1938946.9 | H82: 269.9808218 | I82: 37.70% | J82: 1.652668844 | K82: 0.78 | L82: 37.7% | M82: -1 | N82: =IF(J82=1,F82/Data!$F$4,-1) -> -1
A83: 0.79 | B83: 1 | C83: 0.5204978728 | D83: 0.05890237363 | E83: 294.6618527 | F83: 32071.89227 | G83: 1910298.544 | H83: 269.6384563 | I83: 41.79% | J83: 1.392650444 | K83: 0.79 | L83: 41.8% | M83: -1 | N83: =IF(J83=1,F83/Data!$F$4,-1) -> -1
A84: 0.8 | B84: 1 | C84: 0.4954766101 | D84: 0.06220781507 | E84: 312.8293317 | F84: 32054.65068 | G84: 1887724.082 | H84: 269.365041 | I84: 45.15% | J84: 1.214704794 | K84: 0.8 | L84: 45.2% | M84: -1 | N84: =IF(J84=1,F84/Data!$F$4,-1) -> -1
A85: 0.81 | B85: 1 | C85: 0.4728454209 | D85: 0.06586339886 | E85: 330.9967669 | F85: 32037.46558 | G85: 1871190.472 | H85: 269.1627084 | I85: 47.67% | J85: 1.097829202 | K85: 0.81 | L85: 47.7% | M85: -1 | N85: =IF(J85=1,F85/Data!$F$4,-1) -> -1
A86: 0.82 | B86: 1 | C86: 0.4525046424 | D86: 0.0699272345 | E86: 349.1525681 | F86: 32020.34701 | G86: 1860654.668 | H86: 269.0328401 | I86: 49.29% | J86: 1.028807783 | K86: 0.82 | L86: 49.3% | M86: -1 | N86: =IF(J86=1,F86/Data!$F$4,-1) -> -1
A87: 0.83 | B87: 1 | C87: 0.4343819521 | D87: 0.07447124095 | E87: 367.2833397 | F87: 32003.33135 | G87: 1856065.225 | H87: 268.9760388 | I87: 50.00% | J87: 1 | K87: 0.83 | L87: 50.0% | M87: 0.83 | N87: =IF(J87=1,F87/Data!$F$4,-1) -> 1.006394068
A88: 0.84 | B88: 1 | C88: 0.4184338581 | D88: 0.07958520992 | E88: 385.3818089 | F88: 31986.39744 | G88: 1857363.685 | H88: 268.9921235 | I88: 49.80% | J88: 1.008074742 | K88: 0.84 | L88: 49.8% | M88: -1 | N88: =IF(J88=1,F88/Data!$F$4,-1) -> -1
A89: 0.85 | B89: 1 | C89: 0.404652318 | D89: 0.08538302675 | E89: 403.4443234 | F89: 31969.55389 | G89: 1864485.705 | H89: 269.0801478 | I89: 48.70% | J89: 1.053433135 | K89: 0.85 | L89: 48.7% | M89: -1 | N89: =IF(J89=1,F89/Data!$F$4,-1) -> -1
A90: 0.86 | B90: 1 | C90: 0.3930696911 | D90: 0.09201066714 | E90: 421.4723769 | F90: 31952.86772 | G90: 1877362.054 | H90: 269.2384424 | I90: 46.72% | J90: 1.140197849 | K90: 0.86 | L90: 46.7% | M90: -1 | N90: =IF(J90=1,F90/Data!$F$4,-1) -> -1
A91: 0.87 | B91: 1 | C91: 0.383775411 | D91: 0.09965983882 | E91: 439.4472573 | F91: 31936.28141 | G91: 1895919.449 | H91: 269.4646771 | I91: 43.92% | J91: 1.276751712 | K91: 0.87 | L91: 43.9% | M91: -1 | N91: =IF(J91=1,F91/Data!$F$4,-1) -> -1
A92: 0.88 | B92: 1 | C92: 0.3769300985 | D92: 0.1085859315 | E92: 457.3606901 | F92: 31919.82296 | G92: 1920081.261 | H92: 269.7559397 | I92: 40.37% | J92: 1.476907557 | K92: 0.88 | L92: 40.4% | M92: -1 | N92: =IF(J92=1,F92/Data!$F$4,-1) -> -1
A93: 0.89 | B93: 1 | C93: 0.3727940306 | D93: 0.1191370241 | E93: 475.2107438 | F93: 31903.49023 | G93: 1949768.142 | H93: 270.1088276 | I93: 36.21% | J93: 1.761902873 | K93: 0.89 | L93: 36.2% | M93: -1 | N93: =IF(J93=1,F93/Data!$F$4,-1) -> -1
A94: 0.9 | B94: 1 | C94: 0.3717727639 | D94: 0.1318001163 | E94: 492.9972811 | F94: 31887.3015 | G94: 1984898.554 | H94: 270.5195465 | I94: 31.61% | J94: 2.163557467 | K94: 0.9 | L94: 31.6% | M94: -1 | N94: =IF(J94=1,F94/Data!$F$4,-1) -> -1
A95: 0.91 | B95: 1 | C95: 0.3744962778 | D95: 0.1472792546 | E95: 510.7159359 | F95: 31871.25764 | G95: 2025389.212 | H95: 270.9840103 | I95: 26.82% | J95: 2.729137843 | K95: 0.91 | L95: 26.8% | M95: -1 | N95: =IF(J95=1,F95/Data!$F$4,-1) -> -1
A96: 0.92 | B96: 1 | C96: 0.3819504058 | D96: 0.1666296704 | E96: 528.3711487 | F96: 31855.396 | G96: 2071155.49 | H96: 271.4979401 | I96: 22.08% | J96: 3.528774521 | K96: 0.92 | L96: 22.1% | M96: -1 | N96: =IF(J96=1,F96/Data!$F$4,-1) -> -1
A97: 0.93 | B97: 1 | C97: 0.3957334096 | D97: 0.1915115408 | E97: 545.9490105 | F97: 31839.63598 | G97: 2122111.752 | H97: 272.0569561 | I97: 17.65% | J97: 4.666730139 | K97: 0.93 | L97: 17.6% | M97: -1 | N97: =IF(J97=1,F97/Data!$F$4,-1) -> -1
A98: 0.94 | B98: 1 | C98: 0.4185517707 | D98: 0.2246900663 | E98: 563.4412169 | F98: 31824.03088 | G98: 2178171.648 | H98: 272.6566611 | I98: 13.70% | J98: 6.298497586 | K98: 0.94 | L98: 13.7% | M98: -1 | N98: =IF(J98=1,F98/Data!$F$4,-1) -> -1
A99: 0.95 | B99: 1 | C99: 0.4553283084 | D99: 0.2711424108 | E99: 580.8644973 | F99: 31808.55735 | G99: 2239248.381 | H99: 273.2927131 | I99: 10.36% | J99: 8.656730588 | K99: 0.95 | L99: 10.4% | M99: -1 | N99: =IF(J99=1,F99/Data!$F$4,-1) -> -1
A100: 0.96 | B100: 1 | C100: 0.5157568063 | D100: 0.3406809763 | E100: 599.1225614 | F100: 31800 | G100: 2305380.129 | H100: 273.9621353 | I100: 7.63% | J100: 12.09809754 | K100: 0.96 | L100: 7.6% | M100: -1 | N100: =IF(J100=1,F100/Data!$F$4,-1) -> -1
A101: 0.97 | B101: 1 | C101: 0.6228223275 | D101: 0.4563429647 | E101: 618.4708012 | F101: 31800 | G101: 2377429.595 | H101: 274.6699447 | I101: 5.48% | J101: 17.23518512 | K101: 0.97 | L101: 5.5% | M101: -1 | N101: =IF(J101=1,F101/Data!$F$4,-1) -> -1
A102: 0.98 | B102: 1 | C102: 0.8461214329 | D102: 0.6876764531 | E102: 637.728773 | F102: 31800 | G102: 2455488.982 | H102: 275.4129831 | I102: 3.85% | J102: 24.98990998 | K102: 0.98 | L102: 3.8% | M102: -1 | N102: =IF(J102=1,F102/Data!$F$4,-1) -> -1
A103: 0.99 | B103: 1 | C103: 1.532628337 | D103: 1.381696253 | E103: 656.8949233 | F103: 31800 | G103: 2539449.367 | H103: 276.1862743 | I103: 2.65% | J103: 36.78601354 | K103: 0.99 | L103: 2.6% | M103: -1 | N103: =IF(J103=1,F103/Data!$F$4,-1) -> -1
